[Event "4th Batumi Cup 2018"]
[Site "Batumi"]
[Date "2018.07.10"]
[Round "9"]
[White "Khalaji, Hanieh"]
[Black "Sanchez, Louis"]
[Result "0-1"]
[ECO "A40"]
[WhiteElo "2146"]
[BlackElo "2290"]
[Annotator "NA"]
[PlyCount "66"]
[EventDate "2018.07.03"]
[EventType "swiss"]
[EventCountry "GEO"]
[SourceTitle "playchess.com"]
[Source "ChessBase"]
[SourceQuality "1"]
[TimeControl "40/5400+30:1800+30"]

1. d4 {[%emt 0:02:25]} g6 {[%emt 0:00:03]} 2. Bf4 {[%emt 0:00:28]} Bg7 {[%emt 0:00:23]} 3. e3 {[%emt 0:00:29]} d6 {[%emt 0:00:23]} 4. Nd2 {[%emt 0:04:05]} e5 {[%emt 0:06:08]} 5. dxe5 {[%emt 0:00:55]} dxe5 {[%emt 0:00:11]} 6. Bg3 $11 {[%emt 0:00:07]} Nd7 {[%emt 0:03:01]} 7. Bc4 {[%emt 0:02:10]} Ne7 {[%emt 0:02:49]} 8. Ne4 {[%emt 0:02:11]} Nf5 {[%emt 0:02:29]} 9. Nf3 {[%emt 0:02:32]} Qe7 {[%emt 0:02:56]} 10. c3 {[%emt 0:02:12]} O-O {[%emt 0:03:21]} 11. Qc2 {[%emt 0:07:00]} h5 {[%emt 0:03:27]} 12. h4 {[%emt 0:03:47]} Nb6 {[%emt 0:07:43]} 13. Bd3 {[%emt 0:07:48]} Bd7 {[%emt 0:02:54]} 14. Nfg5 {[%emt 0:04:49]} Ba4 {[%emt 0:05:33]} 15. Qe2 {[%emt 0:01:08]} Bc6 {[%emt 0:01:29]} 16. O-O-O {[%emt 0:03:26]} Bh6 {[%emt 0:14:25]} 17. Bh2 {[%emt 0:07:13]} Nxh4 {[%emt 0:03:12]} 18. Bg3 {[%emt 0:07:27]} Nf5 {[%emt 0:00:14]} 19. Rxh5 {[%emt 0:10:04]} Nxg3 {[%emt 0:03:02]} 20. fxg3 {[%emt 0:00:24]} gxh5 {[%emt 0:01:07]} 21. Qxh5 {[%emt 0:00:17]} Kg7 {[%emt 0:00:26]} 22. Nf3 {[%emt 0:15:30]} Rh8 {[%emt 0:03:44]} 23. Qg4+ {[%emt 0:02:09]} Kf8 {[%emt 0:00:32]} 24. Nh4 {[%emt 0:02:02]} Nd5 {[%emt 0:11:32]} 25. Qf3 {[%emt 0:01:36]} Qe6 {[%emt 0:05:34]} 26. Kb1 {[%emt 0:01:50]} Ne7 {[%emt 0:06:41]} 27. Rf1 {[%emt 0:03:08]} Rd8 {[%emt 0:01:24]} 28. Bc2 {[%emt 0:01:45]} Bd5 {[%emt 0:02:51]} 29. b3 {[%emt 0:00:58]} c6 {[%emt 0:00:45]} 30. Qh5 {[%emt 0:01:48]} Bxe4 {[%emt 0:01:08]} 31. Bxe4 {[%emt 0:00:07]} Bg7 {[%emt 0:00:36]} 32. Qg5 {[%emt 0:00:26]} Rd6 {[%emt 0:01:43]} 33. c4 {[%emt 0:01:23]} Bf6 {[%emt 0:01:11]} 0-1

[Event "4th Batumi Cup 2018"]
[Site "Batumi"]
[Date "2018.07.10"]
[Round "9"]
[White "Stepanyan, Eva"]
[Black "Chkhaidze, Nikoloz"]
[Result "0-1"]
[ECO "B41"]
[WhiteElo "2096"]
[BlackElo "2337"]
[Annotator "NA"]
[PlyCount "84"]
[EventDate "2018.07.03"]
[EventType "swiss"]
[EventCountry "GEO"]
[SourceTitle "playchess.com"]
[Source "ChessBase"]
[SourceQuality "1"]
[TimeControl "40/5400+30:1800+30"]

1. e4 {[%emt 0:00:00]} c5 {[%emt 0:06:40]} 2. Nf3 {[%emt 0:00:00]} e6 {[%emt 0:00:06]} 3. d4 {[%emt 0:00:00]} cxd4 {[%emt 0:00:03]} 4. Nxd4 {[%emt 0:00:00]} a6 {[%emt 0:00:01]} 5. c4 {[%emt 0:00:09]} Nf6 {[%emt 0:00:11]} 6. Nc3 {[%emt 0:00:04]} d6 {[%emt 0:01:25]} 7. Be2 {[%emt 0:02:33]} b6 {[%emt 0:02:32]} 8. Bf3 {[%emt 0:04:28]} Ra7 {[%emt 0:00:34]} 9. O-O {[%emt 0:01:41]} Rc7 {[%emt 0:00:34]} 10. Qa4+ {[%emt 0:04:00]} Nfd7 {[%emt 0:04:33]} 11. Be3 {[%emt 0:08:27]} Be7 {[%emt 0:00:31]} 12. Nxe6 {[%emt 0:20:15]} fxe6 {[%emt 0:00:19]} 13. Bxb6 {[%emt 0:00:04]} O-O {[%emt 0:01:33]} 14. Bxc7 {[%emt 0:00:04]} Qxc7 {[%emt 0:00:03]} 15. Be2 {[%emt 0:01:32]} Nc6 {[%emt 0:01:48]} 16. Rad1 {[%emt 0:02:09]} Qb6 {[%emt 0:04:55]} 17. Qc2 {[%emt 0:03:30]} Nd4 {[%emt 0:01:10]} 18. Qd2 {[%emt 0:00:11]} Bf6 {[%emt 0:01:19]} 19. Kh1 {[%emt 0:01:29]} Bb7 {[%emt 0:01:15]} 20. f3 {[%emt 0:00:53]} Qc5 {[%emt 0:02:14]} 21. b3 {[%emt 0:00:38]} Qh5 {[%emt 0:01:23]} 22. Qe3 {[%emt 0:03:21]} e5 {[%emt 0:03:15]} 23. Bd3 {[%emt 0:04:14]} Nc5 {[%emt 0:02:56]} 24. Bb1 {[%emt 0:01:14]} Bg5 {[%emt 0:04:14]} 25. Qf2 {[%emt 0:04:53]} Rf6 {[%emt 0:00:51]} 26. Ne2 {[%emt 0:01:38]} Nxe2 {[%emt 0:10:26]} 27. Qxe2 {[%emt 0:01:32]} Bf4 {[%emt 0:00:04]} 28. g4 {[%emt 0:00:55]} Qe8 {[%emt 0:13:01]} 29. b4 {[%emt 0:03:28]} Ne6 {[%emt 0:00:46]} 30. Rxd6 {[%emt 0:01:22]} Nd4 {[%emt 0:00:27]} 31. Rxd4 {[%emt 0:00:10]} exd4 {[%emt 0:00:07]} 32. c5 {[%emt 0:01:09]} h5 {[%emt 0:03:48]} 33. Qc4+ {[%emt 0:01:15]} Kh8 {[%emt 0:00:43]} 34. Qxd4 {[%emt 0:00:11]} hxg4 {[%emt 0:00:45]} 35. Qd3 {[%emt 0:08:32]} Bc7 {[%emt 0:06:37]} 36. Kg1 {[%emt 0:04:18]} Qe5 {[%emt 0:04:20]} 37. f4 {[%emt 0:05:40]} Rxf4 {[%emt 0:01:06]} 38. Rxf4 {[%emt 0:00:25]} Qxf4 {[%emt 0:00:05]} 39. e5 {[%emt 0:00:16]} Qc1+ {[%emt 0:00:29]} 40. Kf2 {[%emt 0:00:00]} Qh6 {[%emt 0:00:00]} 41. Ke1 {[%emt 0:02:46]} Qxh2 {[%emt 0:02:02]} 42. e6 {[%emt 0:01:09]} Bf3 {[%emt 0:01:41]} 0-1